lending/lending_fUSD_20250808
["ID","MTS","AMOUNT","RATE_DAILY","PERIOD"]
[377997936,1754658643183,-400.0,0.00018759,2]
[377997937,1754658643193,-400.0,0.00018759,2]
[377997938,1754658643202,-400.0,0.00018759,2]
[377997939,1754658643212,-400.0,0.00018759,2]
[377997940,1754658643221,-400.0,0.00018759,2]
[377997942,1754658643231,-178.61937879,0.00018759,2]
[377997944,1754658643240,-400.0,0.00018759,2]
[377997945,1754658643250,-501.14,0.00018759,2]
[377997946,1754658643259,-400.0,0.00018759,2]
[377997947,1754658643268,-676.68,0.00018759,2]
[377997948,1754658643277,-400.0,0.00018759,2]
[377997949,1754658643287,-400.0,0.00018759,2]
[377997950,1754658643296,-400.0,0.00018759,2]
[377997951,1754658643305,-489.88,0.00018759,2]
[377997952,1754658643314,-590.11,0.00018759,2]
[377997953,1754658643325,-400.0,0.00018759,2]
[377997954,1754658643334,-400.0,0.00018759,2]
[377997955,1754658643343,-400.0,0.00018759,2]
[377997956,1754658643353,-662.87,0.00018759,2]
[377997957,1754658643362,-400.0,0.00018759,2]
[377997958,1754658643372,-400.0,0.00018759,2]
[377997959,1754658643381,-400.0,0.00018759,2]
[377997960,1754658643391,-590.98,0.00018759,2]
[377997961,1754658643400,-527.34,0.00018759,2]
[377997962,1754658643409,-400.0,0.00018759,2]
[377997963,1754658643419,-447.68,0.00018759,2]
[377997964,1754658643428,-741.17,0.00018759,2]
[377997965,1754658643437,-400.0,0.00018759,2]
[377997966,1754658643446,-400.0,0.00018759,2]
[377997967,1754658643456,-676.13,0.00018759,2]
[377997968,1754658643465,-400.0,0.00018759,2]
[377997969,1754658643474,-529.05,0.00018759,2]
[377997970,1754658643483,-400.0,0.00018759,2]
[377997971,1754658643493,-400.0,0.00018759,2]
[377997972,1754658643502,-400.0,0.00018759,2]
[377997973,1754658643512,-480.7,0.00018759,2]
[377997974,1754658643521,-400.0,0.00018759,2]
[377997975,1754658643535,-400.0,0.00018759,2]
[377997976,1754658643544,-400.0,0.00018759,2]
[377997977,1754658643553,-400.0,0.00018759,2]
[377997978,1754658643563,-400.0,0.00018759,2]
[377997979,1754658643572,-400.0,0.00018759,2]
[377997980,1754658643582,-528.75,0.00018759,2]
[377997981,1754658643591,-400.0,0.00018759,2]
[377997982,1754658643600,-591.05,0.00018759,2]
[377997983,1754658643611,-400.0,0.00018759,2]
[377997984,1754658643621,-400.0,0.00018759,2]
[377997985,1754658643630,-400.0,0.00018759,2]
[377997986,1754658643639,-400.0,0.00018759,2]
[377997987,1754658643648,-400.0,0.00018759,2]
[377997988,1754658643658,-508.48,0.00018759,2]
[377997989,1754658643667,-400.0,0.00018759,2]
[377997990,1754658643676,-671.71,0.00018759,2]
[377997991,1754658643686,-400.0,0.00018759,2]
[377997992,1754658643695,-400.0,0.00018759,2]
[377997993,1754658643704,-400.0,0.00018759,2]
[377997994,1754658643714,-400.0,0.00018759,2]
[377997995,1754658643723,-592.18,0.00018759,2]
[377997996,1754658643733,-400.0,0.00018759,2]
[377997997,1754658643743,-400.0,0.00018759,2]
[377997998,1754658643753,-400.0,0.00018759,2]
[377997999,1754658643762,-400.0,0.00018759,2]
[377998000,1754658643772,-402.99,0.00018759,2]
[377998001,1754658643781,-688.4,0.00018759,2]
[377998002,1754658643792,-400.0,0.00018759,2]
[377998003,1754658643802,-177.09695275,0.00018759,2]
[377998004,1754658643811,-400.0,0.00018759,2]
[377998005,1754658643820,-400.0,0.00018759,2]
[377998006,1754658643830,-400.0,0.00018759,2]
[377998007,1754658643839,-195.1383581,0.00018759,2]
[377998008,1754658643848,-565.42,0.00018759,2]
[377998009,1754658643859,-400.0,0.00018759,2]
[377998010,1754658643876,-587.13,0.00018759,2]
[377998011,1754658643885,-400.0,0.00018759,2]
[377998012,1754658643894,-400.0,0.00018759,2]
[377998013,1754658643904,-400.0,0.00018759,2]
[377998014,1754658643913,-400.0,0.00018759,2]
[377998015,1754658643924,-400.0,0.00018759,2]
[377998016,1754658643934,-608.63,0.00018759,2]
[377998017,1754658643943,-308.49889955,0.00018759,2]
[377998018,1754658643952,-400.0,0.00018759,2]
[377998019,1754658643961,-1099.65,0.00018759,2]
[377998020,1754658643970,-400.0,0.00018759,2]
[377998021,1754658643985,-400.0,0.00018759,2]
[377998022,1754658643994,-457.1,0.00018759,2]
[377998023,1754658644004,-415.19,0.00018759,2]
[377998024,1754658644014,-400.0,0.00018759,2]
[377998025,1754658644023,-400.0,0.00018759,2]
[377998026,1754658644032,-299.80236492,0.00018759,2]
[377998027,1754658644042,-400.0,0.00018759,2]
[377998028,1754658644051,-400.0,0.00018759,2]
[377998029,1754658644060,-736.98,0.00018759,2]
[377998030,1754658644070,-237.09885253,0.00018759,2]
[377998031,1754658644079,-529.02,0.00018759,2]
[377998032,1754658644088,-400.0,0.00018759,2]
[377998033,1754658644097,-400.0,0.00018759,2]
[377998034,1754658644107,-400.0,0.00018759,2]
[377998035,1754658644116,-400.0,0.00018759,2]
[377998036,1754658644126,-521.45,0.00018759,2]
[377998037,1754658644135,-506.79,0.00018759,2]
[377998038,1754658644145,-421.44,0.00018759,2]
[377998039,1754658644154,-642.25,0.00018759,2]
[377998040,1754658644164,-400.0,0.00018759,2]
[377998041,1754658644173,-400.0,0.00018759,2]
[377998042,1754658644182,-400.0,0.0001876,2]
[377998043,1754658644192,-400.0,0.0001876,2]
[377998044,1754658644202,-400.0,0.0001876,2]
[377998045,1754658644211,-400.0,0.0001876,2]
[377998046,1754658644221,-400.0,0.0001876,2]
[377998047,1754658644230,-400.0,0.0001876,2]
[377998048,1754658644243,-610.01,0.0001876,2]
[377998049,1754658644252,-765.84,0.0001876,2]
[377998050,1754658644262,-702.11,0.0001876,2]
[377998051,1754658644271,-682.43,0.0001876,2]
[377998052,1754658644280,-400.0,0.0001876,2]
[377998053,1754658644289,-2474.93,0.0001876,2]
[377998054,1754658644299,-400.0,0.0001876,2]
[377998055,1754658644308,-400.0,0.0001876,2]
[377998056,1754658644318,-400.0,0.0001876,2]
[377998057,1754658644328,-400.0,0.0001876,2]
[377998058,1754658644337,-400.0,0.0001876,2]
[377998059,1754658644347,-400.0,0.0001876,2]
[377998060,1754658644356,-576.93,0.0001876,2]
[377998061,1754658644365,-400.0,0.0001876,2]
[377998062,1754658644375,-400.1,0.0001876,2]
[377998063,1754658644384,-1042.07,0.0001876,2]
[377998064,1754658644394,-450.46,0.0001876,2]
[377998065,1754658644403,-940.33,0.0001876,2]
[377998066,1754658644412,-400.0,0.0001876,2]
[377998067,1754658644422,-524.4,0.0001876,2]
[377998068,1754658644431,-662.32,0.0001876,2]
[377998069,1754658644440,-543.52,0.0001876,2]
[377998070,1754658644450,-758.96,0.0001876,2]
[377998071,1754658644459,-434.6,0.0001876,2]
[377998072,1754658644468,-400.0,0.0001876,2]
[377998073,1754658644477,-400.0,0.0001876,2]
[377998074,1754658644486,-2448.09,0.0001876,2]
[377998075,1754658644496,-805.9,0.0001876,2]
[377998076,1754658644505,-449.59,0.0001876,2]
[377998077,1754658644515,-400.0,0.0001876,2]
[377998078,1754658644525,-400.0,0.0001876,2]
[377998079,1754658644538,-400.0,0.0001876,2]
[377998080,1754658644547,-400.0,0.0001876,2]
[377998081,1754658644557,-719.98,0.0001876,2]
[377998082,1754658644567,-419.15,0.0001876,2]
[377998083,1754658644577,-600.93,0.0001876,2]
[377998084,1754658644586,-807.14,0.0001876,2]
[377998085,1754658644595,-1606.57,0.0001876,2]
[377998086,1754658644604,-400.0,0.0001876,2]
[377998087,1754658644614,-675.06,0.0001876,2]
[377998088,1754658644624,-1272.55,0.0001876,2]
[377998089,1754658644633,-522.73,0.0001876,2]
[377998090,1754658644642,-914.13,0.0001876,2]
[377998091,1754658644651,-421.35,0.0001876,2]
[377998092,1754658644661,-400.0,0.0001876,2]
[377998093,1754658644670,-546.63,0.0001876,2]
[377998094,1754658644679,-490.13,0.0001876,2]
[377998095,1754658644688,-4684.57,0.0001876,2]
[377998096,1754658644697,-443.87,0.0001876,2]
[377998097,1754658644707,-1355.63,0.0001876,2]
[377998098,1754658644715,-400.0,0.0001876,2]
[377998099,1754658644725,-1001.52,0.0001876,2]
[377998100,1754658644735,-400.0,0.0001876,2]
[377998101,1754658644744,-400.0,0.0001876,2]
[377998102,1754658644754,-615.94,0.0001876,2]
[377998103,1754658644763,-455.56,0.0001876,2]
[377998104,1754658644773,-400.0,0.0001876,2]
[377998105,1754658644782,-1181.15,0.0001876,2]
[377998106,1754658644792,-705.56,0.0001876,2]
[377998107,1754658644802,-400.0,0.0001876,2]
[377998108,1754658644811,-699.91,0.0001876,2]
[377998109,1754658644820,-779.73,0.0001876,2]
[377998110,1754658644830,-400.0,0.0001876,2]
[377998111,1754658644840,-562.31,0.0001876,2]
[377998112,1754658644849,-658.49,0.0001876,2]
[377998113,1754658644859,-400.0,0.0001876,2]
[377998114,1754658644870,-434.38,0.0001876,2]
[377998115,1754658644879,-1028.92,0.0001876,2]
[377998116,1754658644889,-590.74,0.0001876,2]
[377998117,1754658644900,-494.93,0.0001876,2]
[377998118,1754658644922,-972.25,0.0001876,2]
[377998119,1754658644939,-400.0,0.0001876,2]
[377998120,1754658644950,-1275.92,0.0001876,2]
[377998121,1754658644959,-400.0,0.0001876,2]
[377998122,1754658644969,-737.93,0.0001876,2]
[377998123,1754658644978,-618.4,0.0001876,2]
[377998124,1754658644988,-552.6,0.0001876,2]
[377998125,1754658644997,-758.01,0.0001876,2]
[377998126,1754658645007,-1038.61,0.0001876,2]
[377998127,1754658645016,-1349.99,0.0001876,2]
[377998128,1754658645025,-573.66,0.0001876,2]
[377998129,1754658645034,-1670.51,0.0001876,2]
[377998130,1754658645043,-10189.63,0.0001876,2]
[377998131,1754658645053,-500.0,0.00018761,2]
[377998132,1754658645062,-500.0,0.00018761,2]
[377998133,1754658645071,-406.16,0.00018761,2]
[377998134,1754658645080,-2083.57,0.00018761,2]
[377998135,1754658645089,-930.2,0.00018761,2]
[377998136,1754658645099,-200.0,0.00018761,2]
[377998137,1754658645108,-263.5,0.00018801,2]
[377998138,1754658645118,-542.79657,0.0001881,2]
[377998139,1754658645127,-150.0,0.00018844,2]
[377998140,1754658645137,-150.0,0.00018844,2]
[377998141,1754658645146,-157.78440529,0.000189,2]
[377998142,1754658645157,-336.208,0.00018902,2]
[377998143,1754658645167,-241.05843181,0.00018908,2]
[377998144,1754658645177,-165.43627044,0.00018919,2]
[377998145,1754658645187,-211.62674257,0.00018956,2]
[377998146,1754658645196,-457.64618948,0.00018956,2]
[377998147,1754658645205,-842.44706758,0.00018956,2]
[377998148,1754658645215,-500.0,0.00018973,2]
[377998149,1754658645225,-150.0,0.00018986,2]
[377998150,1754658645235,-150.0,0.00018986,2]
[377998151,1754658645244,-400.0,0.00018993,2]
[377998152,1754658645254,-998.46,0.00018993,2]
[377998153,1754658645267,-550.47,0.00018993,2]
[377998154,1754658645277,-1138.11,0.00018993,2]
[377998155,1754658645286,-563.99,0.00018993,2]
[377998156,1754658645296,-400.0,0.00018993,2]
[377998157,1754658645305,-400.0,0.00018993,2]
[377998158,1754658645314,-864.24,0.00018993,2]
[377998159,1754658645324,-681.91,0.00018993,2]
[377998160,1754658645334,-400.0,0.00018993,2]
[377998161,1754658645343,-400.0,0.00018993,2]
[377998162,1754658645353,-850.13,0.00018993,2]
[377998163,1754658645362,-979.25,0.00018993,2]
[377998164,1754658645371,-465.97,0.00018993,2]
[377998165,1754658645380,-400.0,0.00018993,2]
[377998166,1754658645390,-468.64,0.00018993,2]
[377998167,1754658645399,-400.0,0.00018993,2]
[377998168,1754658645408,-897.05,0.00018993,2]
[377998169,1754658645418,-1044.62,0.00018993,2]
[377998170,1754658645427,-1018.0,0.00018993,2]
[377998171,1754658645436,-1064.29,0.00018993,2]
[377998172,1754658645446,-815.42,0.00018993,2]
[377998173,1754658645455,-152.28851989,0.00018996,2]
[377998174,1754658645464,-1852.6564229,0.00018997,2]
[377998175,1754658645474,-73420.3424165,0.00018997,2]
[377998176,1754658645484,-2112.1913211,0.00018997,2]
[377998177,1754658645494,-1250.02,0.00018999,2]
[377998178,1754658645504,-833.42,0.00018999,2]
[377998179,1754658645513,-750.4943,0.00018999,2]
[377998180,1754658645523,-400.0,0.00018999,2]
[377998181,1754658645536,-1578.34,0.00018999,2]
[377998182,1754658645546,-1299.28,0.00018999,2]
[377998183,1754658645555,-998.11,0.00018999,2]
[377998184,1754658645566,-961.3,0.00018999,2]
[377998185,1754658645575,-956.57,0.00018999,2]
[377998186,1754658645584,-670.19,0.00018999,2]
[377998187,1754658645594,-819.86,0.00018999,2]
[377998188,1754658645605,-497.32,0.00018999,2]
[377998189,1754658645615,-706.35,0.00018999,2]
[377998190,1754658645624,-709.02,0.00018999,2]
[377998191,1754658645634,-7936.97234037,0.00019,6]
[377998192,1754658645644,-161469.69894237,0.00019,2]
[377998195,1754658646820,-400.0,0.00018758,2]
[377998196,1754658646830,-7425.61999996,0.00019,2]
[377998197,1754658648399,-400.0,0.00018758,2]
[377998198,1754658648409,-400.0,0.00018758,2]
[377998199,1754658648419,-400.0,0.00018758,2]
[377998200,1754658648429,-401.49,0.00018759,2]
[377998201,1754658648439,-933.23,0.00018759,2]
[377998202,1754658648448,-5431.199521,0.00019,2]
[377998203,1754658780110,150.0,0.00018,2]
[377998204,1754659070159,188.82,0.00017933,2]
[377998205,1754659095920,524.0,0.00017276,2]
[377998206,1754659113764,235.63,0.0001792,2]
[377998207,1754659122467,-4174.48,0.00018012,2]
[377998208,1754659122489,-250.0,0.00018016,2]
[377998209,1754659122510,-555.18,0.0001802,2]
[377998210,1754659122546,-1385.52684751,0.00018432,2]
[377998211,1754659141649,1000.0,0.00017953,2]
[377998212,1754659218790,400.0,0.00027397,120]
[377998213,1754659219053,198.8,0.00027397,120]
[377998214,1754659272041,638.45,0.00015068,2]
[377998215,1754659272475,638.45,0.00016661,2]
[377998216,1754659272650,638.45,0.00018253,2]
[377998217,1754659307960,250.0,0.00017926,2]
[377998218,1754659310220,150.0,0.00017,2]
[377998219,1754659310572,150.0,0.0001818,2]
[377998222,1754659365082,500.0,0.00016986,2]
[377998223,1754659386644,1842.82280219,0.00018492,2]
[377998225,1754659505103,260.63,0.00013699,2]
[377998226,1754659512039,157.19,0.00017923,2]
[377998227,1754659512216,157.19,0.00018103,2]
[377998239,1754659602819,166.43,0.00017941,2]
[377998240,1754659608178,23900.0,0.00017941,2]
[377998251,1754659659880,13185.2003503,0.00018,2]
[377998252,1754659659908,1647.29744848,0.00018,2]
[377998253,1754659659929,15000.0,0.00018,2]
[377998254,1754659659950,15000.0,0.00018,2]
[377998255,1754659659974,15000.0,0.00018,2]
[377998256,1754659659996,15000.0,0.00018,2]
[377998257,1754659660021,15000.0,0.00018,2]
[377998258,1754659660043,15000.0,0.00018,2]
[377998259,1754659660065,15000.0,0.00018,2]
[377998260,1754659660088,15000.0,0.00018,2]
[377998261,1754659660109,15000.0,0.00018,2]
[377998262,1754659660131,15000.0,0.00018,2]
[377998263,1754659660153,15000.0,0.00018,2]
[377998264,1754659660175,7614.36232833,0.00018,2]
[377998271,1754659787206,220.0,0.00017912,2]
[377998286,1754659832239,-524.0,0.00018124,2]
[377998287,1754659832251,-235.63,0.00018592,2]
[377998288,1754659832261,-1000.0,0.00018659,2]
[377998289,1754659832271,-845.57550926,0.00018659,2]
[377998290,1754659832282,-300.0,0.00018746,2]
[377998291,1754659832291,-1200.0,0.00018746,2]
[377998292,1754659832301,-261.18601567,0.00018747,2]
[377998293,1754659832311,-267.46074303,0.00018747,2]
[377998294,1754659832321,-5199.43684444,0.00018747,2]
[377998295,1754659832330,-726.42,0.00018758,2]
[377998296,1754659832340,-549.75,0.00018758,2]
[377998297,1754659832350,-582.88,0.00018758,2]
[377998298,1754659832359,-435.55600065,0.00018758,2]
[377998299,1754659832408,-121.83399935,0.00018758,2]
[377998300,1754659832417,-485.68,0.00018758,2]
[377998301,1754659832427,-679.4,0.00018758,2]
[377998302,1754659832436,-894.35,0.00018758,2]
[377998303,1754659832445,-400.0,0.00018758,2]
[377998304,1754659832455,-450.63,0.00018758,2]
[377998305,1754659832464,-283.8659505,0.00018758,2]
[377998307,1754659836930,-554.9040495,0.00018758,2]
[377998308,1754659836941,-438.69414719,0.00018758,2]
[377998336,1754659837681,150.0,0.00016,2]
[377998341,1754659838078,150.0,0.0001718,2]
[377998342,1754659838204,-422.20585281,0.00018758,2]
[377998343,1754659838215,-611.35,0.00018758,2]
[377998344,1754659838225,-586.3,0.00018758,2]
[377998345,1754659838236,-400.0,0.00018758,2]
[377998346,1754659838247,-400.0,0.00018758,2]
[377998347,1754659838257,-480.82,0.00018758,2]
[377998348,1754659838268,-731.84,0.00018758,2]
[377998349,1754659838279,-634.72,0.00018758,2]
[377998350,1754659838290,-553.66,0.00018758,2]
[377998351,1754659838301,-788.08,0.00018758,2]
[377998352,1754659838311,-809.29,0.00018758,2]
[377998353,1754659838321,-575.38,0.00018758,2]
[377998354,1754659838331,-683.2,0.00018758,2]
[377998355,1754659838341,-643.4,0.00018758,2]
[377998356,1754659838352,-598.13,0.00018758,2]
[377998357,1754659838362,-400.0,0.00018758,2]
[377998358,1754659838372,-698.58,0.00018758,2]
[377998359,1754659838382,-917.04,0.00018758,2]
[377998360,1754659838393,-533.39,0.00018758,2]
[377998361,1754659838403,-400.0,0.00018758,2]
[377998362,1754659838414,-1123.83,0.00018758,2]
[377998363,1754659838424,-527.02,0.00018758,2]
[377998364,1754659838435,-874.11,0.00018758,2]
[377998365,1754659838446,-896.15,0.00018758,2]
[377998366,1754659838456,-616.69,0.00018758,2]
[377998367,1754659838467,-957.85,0.00018758,2]
[377998369,1754659838478,-400.0,0.00018758,2]
[377998370,1754659838889,-471.03,0.00018758,2]
[377998371,1754659838900,-722.8,0.00018758,2]
[377998372,1754659838910,-1008.27,0.00018758,2]
[377998373,1754659838919,-714.08,0.00018758,2]
[377998374,1754659838930,-400.0,0.00018758,2]
[377998375,1754659838939,-798.26,0.00018758,2]
[377998376,1754659838950,-801.02,0.00018758,2]
[377998377,1754659838960,-613.55,0.00018758,2]
[377998378,1754659838970,-694.42,0.00018758,2]
[377998379,1754659838979,-878.57,0.00018758,2]
[377998380,1754659838988,-416.4,0.00018758,2]
[377998381,1754659838997,-567.35,0.00018758,2]
[377998382,1754659839007,-751.12,0.00018758,2]
[377998383,1754659839016,-609.1,0.00018758,2]
[377998384,1754659839025,-590.92,0.00018758,2]
[377998385,1754659839034,-400.0,0.00018758,2]
[377998386,1754659839043,-744.92,0.00018758,2]
[377998387,1754659839054,-547.67,0.00018758,2]
[377998388,1754659839064,-405.88,0.00018758,2]
[377998389,1754659839073,-948.49,0.00018758,2]
[377998390,1754659839083,-400.0,0.00018758,2]
[377998391,1754659839092,-737.75,0.00018758,2]
[377998392,1754659839102,-574.15,0.00018758,2]
[377998393,1754659839111,-914.71,0.00018758,2]
[377998394,1754659839120,-400.0,0.00018758,2]
[377998395,1754659839129,-435.53,0.00018758,2]
[377998396,1754659839139,-733.93,0.00018758,2]
[377998397,1754659839148,-611.07,0.00018758,2]
[377998398,1754659839157,-485.12,0.00018758,2]
[377998399,1754659839167,-809.57,0.00018758,2]
[377998400,1754659839176,-400.0,0.00018758,2]
[377998401,1754659839186,-940.85,0.00018758,2]
[377998402,1754659839195,-215.27384156,0.00018758,2]
[377998403,1754659839205,-672.86,0.00018758,2]
[377998404,1754659839214,-943.11,0.00018758,2]
[377998405,1754659839224,-858.05,0.00018758,2]
[377998406,1754659839234,-400.0,0.00018758,2]
[377998407,1754659839245,-571.37,0.00018758,2]
[377998408,1754659839255,-654.0,0.00018758,2]
[377998409,1754659839264,-771.98,0.00018758,2]
[377998410,1754659839274,-740.04,0.00018758,2]
[377998411,1754659839283,-400.0,0.00018758,2]
[377998412,1754659839293,-976.72,0.00018758,2]
[377998413,1754659839303,-910.27,0.00018758,2]
[377998414,1754659839312,-2371.8,0.00018758,2]
[377998415,1754659839321,-532.92,0.00018758,2]
[377998416,1754659839331,-634.72,0.00018758,2]
[377998417,1754659839340,-434.93,0.00018758,2]
[377998418,1754659839349,-400.0,0.00018758,2]
[377998419,1754659839359,-400.0,0.00018758,2]
[377998420,1754659839368,-527.78,0.00018758,2]
[377998421,1754659839377,-400.0,0.00018758,2]
[377998422,1754659839386,-468.45,0.00018758,2]
[377998423,1754659839396,-654.38,0.00018758,2]
[377998424,1754659839405,-469.02,0.00018758,2]
[377998425,1754659839414,-590.64,0.00018758,2]
[377998426,1754659839424,-400.0,0.00018758,2]
[377998427,1754659839434,-400.0,0.00018758,2]
[377998428,1754659839443,-901.81,0.00018758,2]
[377998429,1754659839453,-594.76,0.00018758,2]
[377998430,1754659839462,-961.3,0.00018758,2]
[377998431,1754659839472,-600.86,0.00018758,2]
[377998432,1754659839482,-706.75,0.00018758,2]
[377998433,1754659839492,-482.73,0.00018758,2]
[377998434,1754659839502,-400.0,0.00018758,2]
[377998435,1754659839511,-400.0,0.00018758,2]
[377998436,1754659839521,-616.12,0.00018758,2]
[377998437,1754659839532,-956.57,0.00018758,2]
[377998438,1754659839543,-400.0,0.00018758,2]
[377998439,1754659839555,-574.16,0.00018758,2]
[377998440,1754659839565,-939.78,0.00018758,2]
[377998441,1754659839575,-604.64,0.00018758,2]
[377998442,1754659839585,-896.7,0.00018758,2]
[377998443,1754659839594,-670.19,0.00018758,2]
[377998444,1754659839604,-509.45,0.00018758,2]
[377998445,1754659839613,-994.73,0.00018758,2]
[377998446,1754659839623,-701.81,0.00018758,2]
[377998447,1754659839632,-787.28,0.00018758,2]
[377998448,1754659839641,-998.65,0.00018758,2]
[377998449,1754659839651,-814.6,0.00018758,2]
[377998450,1754659839660,-402.96,0.00018758,2]
[377998451,1754659839669,-879.2,0.00018758,2]
[377998452,1754659839679,-1066.12,0.00018758,2]
[377998453,1754659839689,-497.32,0.00018758,2]
[377998454,1754659839698,-400.0,0.00018758,2]
[377998455,1754659839708,-400.0,0.00018758,2]
[377998456,1754659839717,-400.0,0.00018758,2]
[377998457,1754659839727,-400.0,0.00018758,2]
[377998458,1754659839738,-400.0,0.00018758,2]
[377998459,1754659839748,-1084.06,0.00018758,2]
[377998460,1754659839759,-842.49,0.00018758,2]
[377998461,1754659839771,-400.0,0.00018758,2]
[377998462,1754659839780,-709.02,0.00018758,2]
[377998463,1754659839790,-400.0,0.00018758,2]
[377998464,1754659839800,-1527.46,0.00018758,2]
[377998465,1754659839809,-400.0,0.00018758,2]
[377998466,1754659839819,-400.0,0.00018758,2]
[377998467,1754659839828,-646.28,0.00018758,2]
[377998468,1754659839838,-400.0,0.00018758,2]
[377998469,1754659839847,-667.22,0.00018758,2]
[377998470,1754659839857,-482.43,0.00018758,2]
[377998471,1754659839868,-727.34,0.00018758,2]
[377998472,1754659839879,-400.0,0.00018758,2]
[377998473,1754659839889,-703.99,0.00018758,2]
[377998474,1754659839899,-677.36,0.00018758,2]
[377998475,1754659839909,-853.77,0.00018758,2]
[377998476,1754659839919,-400.0,0.00018758,2]
[377998477,1754659839928,-401.68,0.00018758,2]
[377998478,1754659839938,-400.0,0.00018758,2]
[377998479,1754659839950,-633.63,0.00018758,2]
[377998481,1754659839960,-424.59,0.00018758,2]
[377998482,1754659839970,-668.5,0.00018758,2]
[377998483,1754659839980,-472.55,0.00018758,2]
[377998484,1754659839991,-1025.9,0.00018758,2]
[377998485,1754659840002,-637.41,0.00018758,2]
[377998486,1754659840013,-1030.35,0.00018758,2]
[377998487,1754659840022,-1539.63,0.00018758,2]
[377998488,1754659840033,-400.0,0.00018758,2]
[377998489,1754659840042,-2346.09,0.00018758,2]
[377998490,1754659840053,-400.0,0.00018758,2]
[377998491,1754659840064,-400.0,0.00018758,2]
[377998492,1754659840074,-685.95,0.00018758,2]
[377998493,1754659840083,-400.0,0.00018758,2]
[377998494,1754659840094,-263.98036036,0.00018758,2]
[377998495,1754659840105,-400.0,0.00018758,2]
[377998496,1754659840114,-400.0,0.00018758,2]
[377998497,1754659840123,-400.0,0.00018758,2]
[377998498,1754659840133,-400.0,0.00018758,2]
[377998499,1754659840142,-400.0,0.00018758,2]
[377998500,1754659840151,-1000.08,0.00018758,2]
[377998501,1754659840160,-623.64,0.00018758,2]
[377998502,1754659840169,-423.05,0.00018758,2]
[377998503,1754659840179,-156.5964674,0.00018758,2]
[377998504,1754659840188,-400.0,0.00018759,2]
[377998505,1754659840198,-421.82,0.00018759,2]
[377998506,1754659840207,-400.0,0.00018759,2]
[377998507,1754659840217,-662.59,0.00018759,2]
[377998508,1754659840226,-400.0,0.00018759,2]
[377998509,1754659840235,-529.51,0.00018759,2]
[377998510,1754659840244,-400.0,0.00018759,2]
[377998511,1754659840253,-466.56,0.00018759,2]
[377998512,1754659840262,-414.08,0.00018759,2]
[377998513,1754659840272,-1641.95,0.00018759,2]
[377998514,1754659840282,-400.0,0.00018759,2]
[377998515,1754659840291,-400.0,0.00018759,2]
[377998516,1754659840302,-400.0,0.00018759,2]
[377998517,1754659840312,-400.0,0.00018759,2]